[Event "Budapest Spring Festival 2019"]
[Site "Budapest"]
[Date "2019.04.12"]
[Round "4.40"]
[White "Havanecz, Bianka"]
[Black "Lye, Lik Zang"]
[Result "1/2-1/2"]
[ECO "D18"]
[WhiteElo "2265"]
[BlackElo "2377"]
[Annotator "ChessBase"]
[PlyCount "129"]
[EventDate "2019.04.09"]
[EventType "swiss"]
[EventCountry "HUN"]
[SourceTitle "playchess.com"]
[Source "ChessBase"]
[SourceQuality "1"]
[TimeControl "40/5400+30:1800+30"]

1. c4 {[%emt 0:00:03]} c6 {[%emt 0:01:24]} 2. d4 {[%emt 0:00:06]} Nf6 {[%emt 0:00:39]} 3. Nf3 {[%emt 0:00:09]} d5 {[%emt 0:00:11]} 4. Nc3 {[%emt 0:00:06]} dxc4 {[%emt 0:02:21]} 5. a4 {[%emt 0:00:06]} Bf5 {[%emt 0:00:09]} 6. e3 {[%emt 0:00:05]} e6 {[%emt 0:00:20]} 7. Bxc4 {[%emt 0:00:05]} Bb4 {[%emt 0:00:08]} 8. O-O {[%emt 0:00:04]} Nbd7 {[%emt 0:00:08]} 9. Qe2 {[%emt 0:00:11]} Bg6 {[%emt 0:00:30]} 10. e4 {[%emt 0:00:07]} O-O {[%emt 0:01:36]} 11. Bd3 {[%emt 0:00:21]} Bh5 {[%emt 0:01:46]} 12. e5 {[%emt 0:00:08]} Nd5 {[%emt 0:00:20]} 13. Nxd5 {[%emt 0:00:05]} cxd5 {[%emt 0:00:08]} 14. Qe3 {[%emt 0:00:05]} Re8 {[%emt 0:07:02]} 15. Ng5 {[%emt 0:08:02]} Bg6 {[%emt 0:04:15]} 16. Bxg6 {[%emt 0:00:23]} fxg6 {[%emt 0:09:56]} 17. Qh3 {[%emt 0:12:41]} Nf8 {[%emt 0:00:26]} 18. Be3 {[%emt 0:06:21]} Rc8 {[%emt 0:12:18]} 19. Rfc1 {[%emt 0:00:27]} Qd7 {[%emt 0:03:00]} 20. Qf3 {[%emt 0:03:06]} Rxc1+ {[%emt 0:05:02]} 21. Bxc1 {[%emt 0:00:39]} Rc8 {[%emt 0:01:38]} 22. h4 {[%emt 0:00:58]} h6 {[%emt 0:03:36]} 23. Nh3 {[%emt 0:00:06]} Rc4 {[%emt 0:07:47]} 24. Qd1 {[%emt 0:02:18]} Qc6 {[%emt 0:11:29]} 25. Nf4 {[%emt 0:00:54]} Be7 {[%emt 0:06:12]} 26. g3 {[%emt 0:00:18]} Qb6 {[%emt 0:04:05]} 27. Ne2 {[%emt 0:00:34]} Rc7 {[%emt 0:02:22]} 28. Kg2 {[%emt 0:10:56]} Qc6 {[%emt 0:04:48]} 29. Qd3 {[%emt 0:05:36]} Qc2 {[%emt 0:01:13]} 30. Qxc2 {[%emt 0:00:06]} Rxc2 {[%emt 0:00:04]} 31. Kf3 {[%emt 0:00:07]} Nd7 {[%emt 0:04:00]} 32. Ke3 {[%emt 0:00:11]} Nb8 {[%emt 0:01:02]} 33. Kd3 {[%emt 0:00:28]} Rc8 {[%emt 0:00:50]} 34. Bd2 {[%emt 0:00:52]} Nc6 {[%emt 0:01:02]} 35. Rc1 {[%emt 0:00:15]} Kf7 {[%emt 0:02:05]} 36. Ke3 {[%emt 0:05:51]} Bd8 {[%emt 0:01:28]} 37. b4 {[%emt 0:00:43]} Ne7 {[%emt 0:00:48]} 38. Rxc8 {[%emt 0:05:28]} Nxc8 {[%emt 0:00:03]} 39. a5 {[%emt 0:00:58]} a6 {[%emt 0:01:21]} 40. Kd3 {[%emt 0:00:00]} Na7 {[%emt 0:00:00]} 41. Kc3 {[%emt 0:02:13]} Nb5+ {[%emt 0:13:08]} 42. Kb3 {[%emt 0:00:11]} Bc7 {[%emt 0:05:21]} 43. Be3 {[%emt 0:00:19]} Bb8 {[%emt 0:00:40]} 44. Kc2 {[%emt 0:01:29]} Bc7 {[%emt 0:01:44]} 45. Nc1 {[%emt 0:01:43]} b6 {[%emt 0:04:31]} 46. Nb3 {[%emt 0:05:21]} Ke7 {[%emt 0:01:29]} 47. Kd3 {[%emt 0:00:55]} Kd7 {[%emt 0:01:02]} 48. Bd2 {[%emt 0:00:41]} Na3 {[%emt 0:01:46]} 49. Be1 {[%emt 0:04:20]} Kc6 {[%emt 0:01:41]} 50. axb6 {[%emt 0:01:53]} Bxb6 {[%emt 0:00:05]} 51. Nc1 {[%emt 0:00:35]} Bxd4 {[%emt 0:00:45]} 52. Kxd4 {[%emt 0:02:33]} Nc2+ {[%emt 0:00:03]} 53. Kc3 {[%emt 0:00:08]} Nxe1 {[%emt 0:00:04]} 54. f4 {[%emt 0:00:36]} Nf3 {[%emt 0:02:52]} 55. Nb3 {[%emt 0:00:44]} g5 {[%emt 0:02:15]} 56. hxg5 {[%emt 0:00:21]} hxg5 {[%emt 0:00:23]} 57. Nc5 {[%emt 0:00:55]} gxf4 {[%emt 0:00:47]} 58. gxf4 {[%emt 0:00:14]} g5 {[%emt 0:00:37]} 59. fxg5 {[%emt 0:02:23]} Nxg5 {[%emt 0:00:17]} 60. Nxa6 {[%emt 0:00:20]} Nf3 {[%emt 0:00:27]} 61. Nc5 {[%emt 0:00:17]} Nxe5 {[%emt 0:00:43]} 62. Nxe6 {[%emt 0:00:08]} Kb6 {[%emt 0:00:38]} 63. Kd4 {[%emt 0:00:20]} Nc6+ {[%emt 0:00:05]} 64. Kxd5 {[%emt 0:00:05]} Nxb4+ {[%emt 0:00:03]} 65. Ke4 1/2-1/2

[Event "Budapest Spring Festival 2019"]
[Site "Budapest"]
[Date "2019.04.13"]
[Round "5.4"]
[White "Mikhalevski, Victor"]
[Black "Arjun Kalyan"]
[Result "1/2-1/2"]
[ECO "D10"]
[WhiteElo "2580"]
[BlackElo "2445"]
[Annotator "ChessBase"]
[PlyCount "52"]
[EventDate "2019.04.09"]
[EventType "swiss"]
[EventCountry "HUN"]
[SourceTitle "playchess.com"]
[Source "ChessBase"]
[SourceQuality "1"]
[TimeControl "40/5400+30:1800+30"]

1. d4 {[%emt 0:00:03]} d5 {[%emt 0:00:07]} 2. c4 {[%emt 0:00:07]} c6 {[%emt 0:00:04]} 3. cxd5 {[%emt 0:00:06]} cxd5 {[%emt 0:00:12]} 4. Bg5 {[%emt 0:00:04]} Nc6 {[%emt 0:01:02]} 5. Nc3 {[%emt 0:00:27]} f6 {[%emt 0:00:31]} 6. Bd2 {[%emt 0:00:47]} e5 {[%emt 0:00:22]} 7. e4 {[%emt 0:01:28]} dxe4 {[%emt 0:00:10]} 8. dxe5 {[%emt 0:00:34]} fxe5 {[%emt 0:00:25]} 9. Nxe4 {[%emt 0:02:22]} Nf6 {[%emt 0:01:04]} 10. Nxf6+ {[%emt 0:02:47]} Qxf6 {[%emt 0:00:03]} 11. Bc3 {[%emt 0:01:17]} Bd7 {[%emt 0:13:40]} 12. Qh5+ {[%emt 0:14:42]} g6 {[%emt 0:01:48]} 13. Qf3 {[%emt 0:00:05]} Bg7 {[%emt 0:01:37]} 14. Qxf6 {[%emt 0:04:09]} Bxf6 {[%emt 0:00:01]} 15. Bd3 {[%emt 0:09:58]} O-O-O {[%emt 0:13:15]} 16. Ne2 {[%emt 0:07:09]} Nd4 {[%emt 0:03:24]} 17. Ng3 {[%emt 0:09:14]} Bc6 {[%emt 0:06:31]} 18. Be4 {[%emt 0:01:45]} Rd6 {[%emt 0:22:13]} 19. Rc1 {[%emt 0:07:13]} Bg5 {[%emt 0:02:26]} 20. Rd1 {[%emt 0:00:10]} Rhd8 {[%emt 0:04:59]} 21. Bxc6 {[%emt 0:01:49]} Rxc6 {[%emt 0:00:12]} 22. Ne4 {[%emt 0:00:10]} Bh6 {[%emt 0:01:20]} 23. h4 {[%emt 0:01:45]} Rc4 {[%emt 0:01:57]} 24. Ng5 {[%emt 0:04:38]} Rd7 {[%emt 0:08:33]} 25. Bxd4 {[%emt 0:13:50]} exd4 {[%emt 0:00:46]} 26. Kd2 {[%emt 0:00:07]} Ra4 {[%emt 0:02:29]} 1/2-1/2

[Event "Budapest Spring Festival 2019"]
[Site "Budapest"]
[Date "2019.04.13"]
[Round "5.10"]
[White "Timofeev, Artyom"]
[Black "Akesson, Ralf"]
[Result "1-0"]
[ECO "B47"]
[WhiteElo "2593"]
[BlackElo "2346"]
[Annotator "ChessBase"]
[PlyCount "47"]
[EventDate "2019.04.09"]
[EventType "swiss"]
[EventCountry "HUN"]
[SourceTitle "playchess.com"]
[Source "ChessBase"]
[SourceQuality "1"]
[TimeControl "40/5400+30:1800+30"]

1. e4 {[%emt 0:00:04]} c5 {[%emt 0:05:02]} 2. Nf3 {[%emt 0:00:21]} Nc6 {[%emt 0:00:37]} 3. Nc3 {[%emt 0:01:52]} e6 {[%emt 0:01:03]} 4. d4 {[%emt 0:00:46]} cxd4 {[%emt 0:00:07]} 5. Nxd4 {[%emt 0:00:06]} Qc7 {[%emt 0:00:42]} 6. g4 {[%emt 0:03:09]} a6 {[%emt 0:02:28]} 7. h4 {[%emt 0:00:15]} b5 {[%emt 0:05:15]} 8. Nxc6 {[%emt 0:07:09]} dxc6 {[%emt 0:09:18]} 9. Qf3 {[%emt 0:02:07]} Bb7 {[%emt 0:07:07]} 10. Bf4 {[%emt 0:03:40]} e5 {[%emt 0:04:24]} 11. Bg3 {[%emt 0:01:22]} Bd6 {[%emt 0:10:21]} 12. O-O-O {[%emt 0:00:57]} Ne7 {[%emt 0:02:22]} 13. g5 {[%emt 0:12:17]} h5 {[%emt 0:02:55]} 14. gxh6 {[%emt 0:09:22]} Rxh6 {[%emt 0:00:35]} 15. h5 {[%emt 0:00:06]} f6 {[%emt 0:10:48]} 16. Bh3 {[%emt 0:02:14]} Bc8 {[%emt 0:01:23]} 17. Bxc8 {[%emt 0:02:50]} Nxc8 {[%emt 0:03:31]} 18. Qd3 {[%emt 0:02:39]} Be7 {[%emt 0:03:23]} 19. Qe2 {[%emt 0:11:53]} Nb6 {[%emt 0:08:04]} 20. Qg4 {[%emt 0:00:20]} Kf7 {[%emt 0:01:23]} 21. f4 {[%emt 0:02:26]} Bd6 {[%emt 0:00:51]} 22. Rhg1 {[%emt 0:02:41]} Rg8 {[%emt 0:02:42]} 23. fxe5 {[%emt 0:06:08]} Bxe5 {[%emt 0:01:45]} 24. Bf2 {[%emt 0:02:14]} 1-0

[Event "Budapest Spring Festival 2019"]
[Site "Budapest"]
[Date "2019.04.13"]
[Round "5.11"]
[White "Nguyen, Piotr"]
[Black "Horvath, Adam"]
[Result "0-1"]
[ECO "E46"]
[WhiteElo "2427"]
[BlackElo "2533"]
[Annotator "ChessBase"]
[PlyCount "64"]
[EventDate "2019.04.09"]
[EventType "swiss"]
[EventCountry "HUN"]
[SourceTitle "playchess.com"]
[Source "ChessBase"]
[SourceQuality "1"]
[TimeControl "40/5400+30:1800+30"]

1. d4 {[%emt 0:00:03]} Nf6 {[%emt 0:02:27]} 2. c4 {[%emt 0:00:08]} e6 {[%emt 0:00:12]} 3. Nc3 {[%emt 0:00:07]} Bb4 {[%emt 0:00:24]} 4. e3 {[%emt 0:00:18]} O-O {[%emt 0:00:25]} 5. Nge2 {[%emt 0:00:13]} Re8 {[%emt 0:00:30]} 6. a3 {[%emt 0:00:33]} Bf8 {[%emt 0:00:05]} 7. d5 {[%emt 0:01:53]} a5 {[%emt 0:00:43]} 8. Ng3 {[%emt 0:14:30]} Na6 {[%emt 0:02:16]} 9. Bd3 {[%emt 0:03:11]} Nc5 {[%emt 0:14:29]} 10. Bc2 {[%emt 0:01:36]} exd5 {[%emt 0:04:34]} 11. cxd5 {[%emt 0:01:29]} g6 {[%emt 0:15:47]} 12. O-O {[%emt 0:08:37]} b5 {[%emt 0:03:14]} 13. Re1 {[%emt 0:05:15]} Bb7 {[%emt 0:18:21]} 14. e4 {[%emt 0:03:15]} b4 {[%emt 0:00:04]} 15. Na4 {[%emt 0:08:40]} Nxa4 {[%emt 0:15:27]} 16. Bxa4 {[%emt 0:01:06]} Bg7 {[%emt 0:00:59]} 17. axb4 {[%emt 0:11:00]} axb4 {[%emt 0:00:09]} 18. Bg5 {[%emt 0:00:10]} h6 {[%emt 0:02:19]} 19. Bd2 {[%emt 0:00:13]} Qb8 {[%emt 0:07:59]} 20. Qc2 {[%emt 0:09:59]} c6 {[%emt 0:02:13]} 21. dxc6 {[%emt 0:09:43]} Bxc6 {[%emt 0:00:20]} 22. Bxc6 {[%emt 0:00:21]} Rxa1 {[%emt 0:00:07]} 23. Rxa1 {[%emt 0:00:02]} dxc6 {[%emt 0:01:32]} 24. Qxc6 {[%emt 0:02:36]} h5 {[%emt 0:04:59]} 25. Re1 {[%emt 0:04:56]} Ng4 {[%emt 0:00:33]} 26. Bxb4 {[%emt 0:04:41]} Bd4 {[%emt 0:01:50]} 27. Bd6 {[%emt 0:04:06]} Bxf2+ {[%emt 0:00:59]} 28. Kf1 {[%emt 0:00:36]} Qd8 {[%emt 0:00:21]} 29. Ra1 {[%emt 0:02:52]} Kh7 {[%emt 0:00:24]} 30. Ra3 {[%emt 0:01:48]} Re6 {[%emt 0:00:40]} 31. e5 {[%emt 0:00:57]} Bxg3 {[%emt 0:00:13]} 32. Ra8 {[%emt 0:00:34]} Rxe5 {[%emt 0:00:37]} 0-1

[Event "Budapest Spring Festival 2019"]
[Site "Budapest"]
[Date "2019.04.13"]
[Round "5.15"]
[White "Gonda, Laszlo"]
[Black "Popovic, Milan S"]
[Result "1-0"]
[ECO "A04"]
[WhiteElo "2527"]
[BlackElo "2332"]
[Annotator "ChessBase"]
[PlyCount "75"]
[EventDate "2019.04.09"]
[EventType "swiss"]
[EventCountry "HUN"]
[SourceTitle "playchess.com"]
[Source "ChessBase"]
[SourceQuality "1"]
[TimeControl "40/5400+30:1800+30"]

1. Nf3 {[%emt 0:01:32]} g6 {[%emt 0:00:09]} 2. g3 {[%emt 0:06:41]} Bg7 {[%emt 0:00:13]} 3. d4 {[%emt 0:00:03]} Nf6 {[%emt 0:00:13]} 4. Bg2 {[%emt 0:00:26]} O-O {[%emt 0:00:26]} 5. O-O {[%emt 0:00:11]} d6 {[%emt 0:00:06]} 6. a4 {[%emt 0:00:28]} Nbd7 {[%emt 0:09:15]} 7. a5 {[%emt 0:02:45]} a6 {[%emt 0:00:33]} 8. c4 {[%emt 0:13:22]} e5 {[%emt 0:04:06]} 9. Nc3 {[%emt 0:00:19]} Re8 {[%emt 0:14:01]} 10. e3 {[%emt 0:31:31]} exd4 {[%emt 0:13:26]} 11. Nxd4 {[%emt 0:00:46]} Ne5 {[%emt 0:09:27]} 12. b3 {[%emt 0:00:44]} Bg4 {[%emt 0:06:27]} 13. f3 {[%emt 0:00:45]} Bd7 {[%emt 0:03:19]} 14. Nde2 {[%emt 0:01:07]} h5 {[%emt 0:11:35]} 15. h3 {[%emt 0:03:14]} Nh7 {[%emt 0:02:10]} 16. e4 {[%emt 0:09:43]} g5 {[%emt 0:07:59]} 17. f4 {[%emt 0:00:10]} Ng6 {[%emt 0:00:48]} 18. Ra2 {[%emt 0:03:07]} gxf4 {[%emt 0:02:48]} 19. gxf4 {[%emt 0:00:03]} Nh4 {[%emt 0:01:19]} 20. Qd3 {[%emt 0:00:13]} Nxg2 {[%emt 0:01:11]} 21. Kxg2 {[%emt 0:01:50]} Nf6 {[%emt 0:03:03]} 22. Kh2 {[%emt 0:01:09]} Qe7 {[%emt 0:02:15]} 23. Rg1 {[%emt 0:00:56]} Kh8 {[%emt 0:02:32]} 24. Ng3 {[%emt 0:02:03]} Rg8 {[%emt 0:00:14]} 25. Nf5 {[%emt 0:00:37]} Bxf5 {[%emt 0:00:58]} 26. exf5 {[%emt 0:00:02]} Bh6 {[%emt 0:03:01]} 27. Re2 {[%emt 0:01:58]} Qd7 {[%emt 0:01:23]} 28. Rg5 {[%emt 0:01:04]} Rae8 {[%emt 0:00:23]} 29. Reg2 {[%emt 0:00:45]} c6 {[%emt 0:00:31]} 30. Bb2 {[%emt 0:12:31]} Kh7 {[%emt 0:00:26]} 31. Qf3 {[%emt 0:01:17]} Qe7 {[%emt 0:00:16]} 32. Re2 {[%emt 0:00:38]} Qf8 {[%emt 0:00:36]} 33. Rxg8 {[%emt 0:00:40]} Qxg8 {[%emt 0:00:31]} 34. Rg2 {[%emt 0:00:04]} Qf8 {[%emt 0:00:15]} 35. Ne2 {[%emt 0:00:21]} Qe7 {[%emt 0:00:15]} 36. Ng3 {[%emt 0:00:57]} Rg8 {[%emt 0:01:03]} 37. Re2 {[%emt 0:00:35]} Ng4+ {[%emt 0:00:44]} 38. Qxg4 {[%emt 0:00:56]} 1-0

[Event "Budapest Spring Festival 2019"]
[Site "Budapest"]
[Date "2019.04.13"]
[Round "5.20"]
[White "Abdumalik, Zhansaya"]
[Black "Saravanan, V.."]
[Result "1-0"]
[ECO "B90"]
[WhiteElo "2463"]
[BlackElo "2335"]
[Annotator "RC"]
[PlyCount "51"]
[EventDate "2019.04.09"]
[EventType "swiss"]
[EventCountry "HUN"]
[SourceTitle "playchess.com"]
[Source "ChessBase"]
[SourceQuality "1"]
[TimeControl "40/5400+30:1800+30"]

1. e4 {[%emt 0:00:03]} c5 {[%emt 0:00:07]} 2. Nf3 {[%emt 0:00:09]} d6 {[%emt 0:00:07]} 3. d4 {[%emt 0:00:05]} cxd4 {[%emt 0:00:07]} 4. Nxd4 {[%emt 0:00:07]} Nf6 {[%emt 0:00:10]} 5. Nc3 {[%emt 0:00:14]} a6 {[%emt 0:00:06]} 6. h3 {[%emt 0:00:07]} e5 {[%emt 0:00:09]} 7. Nde2 {[%emt 0:00:04]} h5 {[%emt 0:00:14]} 8. g3 {[%emt 0:00:07]} Be6 {[%emt 0:00:15]} 9. Bg2 {[%emt 0:00:43]} Nbd7 {[%emt 0:00:14]} 10. O-O {[%emt 0:02:45]} Be7 {[%emt 0:06:05]} 11. b3 {[%emt 0:03:59]} Rc8 {[%emt 0:07:38]} 12. Be3 {[%emt 0:03:33]} h4 {[%emt 0:12:37]} 13. f4 {[%emt 0:08:45]} Nc5 {[%emt 0:00:57]} 14. g4 {[%emt 0:07:27]} exf4 {[%emt 0:24:45]} 15. Nxf4 {[%emt 0:02:06]} Nh7 {[%emt 0:09:42]} 16. Bd4 {[%emt 0:05:14]} O-O {[%emt 0:05:58]} 17. Ncd5 {[%emt 0:04:40]} Nd7 {[%emt 0:02:13]} 18. Nxe7+ {[%emt 0:03:47]} Qxe7 {[%emt 0:00:07]} 19. Rc1 {[%emt 0:02:48]} Ne5 {[%emt 0:01:39]} 20. Qe1 {[%emt 0:04:49]} Rfe8 {[%emt 0:03:32]} 21. Bf2 {[%emt 0:02:47]} g5 {[%emt 0:00:09]} 22. Ne2 {[%emt 0:04:46]} Nf8 {[%emt 0:09:37]} 23. Nd4 {[%emt 0:03:26]} Nfg6 {[%emt 0:00:09]} 24. Be3 {[%emt 0:02:12]} f6 {[%emt 0:01:21]} 25. Qd2 {[%emt 0:03:52]} Nc6 {[%emt 0:04:09]} 26. e5 {[%emt 0:05:24]} 1-0

[Event "Budapest Spring Festival 2019"]
[Site "Budapest"]
[Date "2019.04.13"]
[Round "5.26"]
[White "Taylor, Adam C"]
[Black "Prraneeth, Vuppala"]
[Result "1-0"]
[ECO "A22"]
[WhiteElo "2398"]
[BlackElo "2177"]
[Annotator "NA"]
[PlyCount "65"]
[EventDate "2019.04.09"]
[EventType "swiss"]
[EventCountry "HUN"]
[SourceTitle "playchess.com"]
[Source "ChessBase"]
[SourceQuality "1"]
[TimeControl "40/5400+30:1800+30"]

1. c4 {[%emt 0:00:05]} e5 {[%emt 0:00:08]} 2. Nc3 {[%emt 0:00:11]} Nf6 {[%emt 0:00:07]} 3. g3 {[%emt 0:00:06]} c6 {[%emt 0:00:11]} 4. Nf3 {[%emt 0:00:19]} e4 {[%emt 0:00:43]} 5. Nd4 {[%emt 0:00:06]} Qb6 {[%emt 0:06:13]} 6. Nb3 {[%emt 0:00:35]} d5 {[%emt 0:16:11]} 7. cxd5 {[%emt 0:00:16]} cxd5 {[%emt 0:00:44]} 8. Bg2 {[%emt 0:00:48]} Bf5 {[%emt 0:02:55]} 9. d3 {[%emt 0:04:59]} Nc6 {[%emt 0:12:45]} 10. Nxd5 {[%emt 0:09:16]} Nxd5 {[%emt 0:08:52]} 11. dxe4 {[%emt 0:00:05]} Bb4+ {[%emt 0:05:32]} 12. Kf1 {[%emt 0:08:48]} Nf6 {[%emt 0:11:10]} 13. Be3 {[%emt 0:02:24]} Qb5 {[%emt 0:00:51]} 14. exf5 {[%emt 0:00:47]} Qxf5 {[%emt 0:00:24]} 15. Nd4 {[%emt 0:02:12]} Nxd4 {[%emt 0:10:47]} 16. Qxd4 {[%emt 0:00:04]} Ng4 {[%emt 0:00:23]} 17. Bh3 {[%emt 0:00:16]} h5 {[%emt 0:01:19]} 18. Kg1 {[%emt 0:28:29]} Qb5 {[%emt 0:07:40]} 19. Bxg4 {[%emt 0:02:02]} hxg4 {[%emt 0:00:06]} 20. Qxg7 {[%emt 0:00:53]} O-O-O {[%emt 0:02:52]} 21. Qxg4+ {[%emt 0:00:05]} Kb8 {[%emt 0:01:14]} 22. Kg2 {[%emt 0:02:16]} f5 {[%emt 0:03:10]} 23. Qf3 {[%emt 0:00:33]} Bd6 {[%emt 0:01:28]} 24. Rhd1 {[%emt 0:01:45]} Bc7 {[%emt 0:02:23]} 25. h4 {[%emt 0:04:25]} Rdg8 {[%emt 0:01:25]} 26. Rd5 {[%emt 0:02:22]} Qb4 {[%emt 0:01:38]} 27. Rxf5 {[%emt 0:02:22]} Qxh4 {[%emt 0:00:06]} 28. Rf8+ {[%emt 0:00:09]} Bd8 {[%emt 0:00:22]} 29. Qf4+ {[%emt 0:00:05]} Qxf4 {[%emt 0:00:08]} 30. Bxf4+ {[%emt 0:00:11]} Ka8 {[%emt 0:00:11]} 31. Rxg8 {[%emt 0:00:06]} Rxg8 {[%emt 0:00:03]} 32. e4 {[%emt 0:00:37]} Re8 {[%emt 0:00:06]} 33. Kf3 {[%emt 0:00:57]} 1-0

[Event "Budapest Spring Festival 2019"]
[Site "Budapest"]
[Date "2019.04.13"]
[Round "5.27"]
[White "Daggupati, Balaji"]
[Black "Kayonde, Andrew"]
[Result "0-1"]
[ECO "B12"]
[WhiteElo "2326"]
[BlackElo "2394"]
[Annotator "NA"]
[PlyCount "82"]
[EventDate "2019.04.09"]
[EventType "swiss"]
[EventCountry "HUN"]
[SourceTitle "playchess.com"]
[Source "ChessBase"]
[SourceQuality "1"]
[TimeControl "40/5400+30:1800+30"]

1. e4 {[%emt 0:00:04]} c6 {[%emt 0:08:51]} 2. d4 {[%emt 0:00:06]} d5 {[%emt 0:00:17]} 3. e5 {[%emt 0:00:06]} c5 {[%emt 0:00:14]} 4. dxc5 {[%emt 0:00:06]} e6 {[%emt 0:00:31]} 5. a3 {[%emt 0:00:37]} Nc6 {[%emt 0:00:29]} 6. Nf3 {[%emt 0:01:59]} Bxc5 {[%emt 0:00:17]} 7. b4 {[%emt 0:00:18]} Bb6 {[%emt 0:00:27]} 8. Bd3 {[%emt 0:01:05]} Nge7 {[%emt 0:01:11]} 9. O-O {[%emt 0:00:40]} Ng6 {[%emt 0:00:41]} 10. Re1 {[%emt 0:01:24]} f6 {[%emt 0:06:17]} 11. Bxg6+ {[%emt 0:06:45]} hxg6 {[%emt 0:00:18]} 12. Qd3 {[%emt 0:00:31]} Kf7 {[%emt 0:00:43]} 13. Nc3 {[%emt 0:02:46]} Nxe5 {[%emt 0:21:42]} 14. Rxe5 {[%emt 0:22:49]} fxe5 {[%emt 0:00:16]} 15. Nxe5+ {[%emt 0:02:27]} Kg8 {[%emt 0:00:14]} 16. Qxg6 {[%emt 0:04:34]} Qf8 {[%emt 0:00:13]} 17. Nd1 {[%emt 0:08:33]} Bd4 {[%emt 0:14:44]} 18. Bb2 {[%emt 0:00:09]} Bxb2 {[%emt 0:00:07]} 19. Nxb2 {[%emt 0:00:06]} Qf5 {[%emt 0:07:58]} 20. Qxf5 {[%emt 0:01:05]} exf5 {[%emt 0:00:07]} 21. Rd1 {[%emt 0:00:21]} Be6 {[%emt 0:00:23]} 22. Nbd3 {[%emt 0:00:06]} Rh6 {[%emt 0:04:41]} 23. Nc5 {[%emt 0:13:42]} b6 {[%emt 0:11:08]} 24. Nxe6 {[%emt 0:00:21]} Rxe6 {[%emt 0:00:07]} 25. Rxd5 {[%emt 0:00:10]} Rc8 {[%emt 0:00:08]} 26. g4 {[%emt 0:02:13]} Rxc2 {[%emt 0:03:08]} 27. gxf5 {[%emt 0:00:06]} Rf6 {[%emt 0:00:11]} 28. Ng4 {[%emt 0:07:00]} Rf7 {[%emt 0:03:36]} 29. f6 {[%emt 0:01:23]} Rc3 30. Rg5 {[%emt 0:01:31]} Kf8 {[%emt 0:00:56]} 31. fxg7+ {[%emt 0:06:59]} Rxg7 {[%emt 0:00:14]} 32. Rf5+ {[%emt 0:00:16]} Ke7 33. f3 {[%emt 0:01:37]} Rxa3 {[%emt 0:02:41]} 34. b5 {[%emt 0:00:06]} Rf7 {[%emt 0:00:54]} 35. Rg5 {[%emt 0:01:06]} Rfxf3 {[%emt 0:00:33]} 36. Ne5 {[%emt 0:00:17]} Rfb3 {[%emt 0:00:14]} 37. Ng4 {[%emt 0:02:09]} Ra2 {[%emt 0:03:05]} 38. Nf2 {[%emt 0:00:16]} Rbb2 {[%emt 0:00:25]} 39. Rf5 {[%emt 0:00:12]} Ke6 {[%emt 0:00:09]} 40. Rf8 {[%emt 0:00:00]} Rxb5 {[%emt 0:00:00]} 41. h4 {[%emt 0:00:22]} Rf5 {[%emt 0:00:48]} 0-1

[Event "Budapest Spring Festival 2019"]
[Site "Budapest"]
[Date "2019.04.13"]
[Round "5.28"]
[White "Polyik, Peter"]
[Black "Nguyen, Van Thanh"]
[Result "1/2-1/2"]
[ECO "A05"]
[WhiteElo "2303"]
[BlackElo "2391"]
[Annotator "NA"]
[PlyCount "29"]
[EventDate "2019.04.09"]
[EventType "swiss"]
[EventCountry "HUN"]
[SourceTitle "playchess.com"]
[Source "ChessBase"]
[SourceQuality "1"]
[TimeControl "40/5400+30:1800+30"]

1. Nf3 {[%emt 0:00:04]} Nf6 {[%emt 0:00:15]} 2. e3 {[%emt 0:00:46]} d5 {[%emt 0:00:23]} 3. c4 {[%emt 0:00:09]} c6 {[%emt 0:00:21]} 4. Nc3 {[%emt 0:00:28]} g6 {[%emt 0:01:27]} 5. d4 {[%emt 0:00:56]} Bg7 {[%emt 0:00:15]} 6. Be2 {[%emt 0:00:29]} O-O {[%emt 0:01:03]} 7. O-O {[%emt 0:00:07]} Be6 {[%emt 0:05:50]} 8. b3 {[%emt 0:04:50]} h6 {[%emt 0:08:04]} 9. Bb2 {[%emt 0:18:24]} Nbd7 {[%emt 0:00:51]} 10. Rc1 {[%emt 0:01:51]} Rc8 {[%emt 0:00:49]} 11. cxd5 {[%emt 0:03:31]} cxd5 {[%emt 0:02:00]} 12. Ne5 {[%emt 0:02:15]} Ne4 {[%emt 0:11:39]} 13. Nxe4 {[%emt 0:02:48]} dxe4 {[%emt 0:02:54]} 14. Rxc8 {[%emt 0:10:05]} Qxc8 {[%emt 0:00:10]} 15. Nxd7 {[%emt 0:00:26]} 1/2-1/2

[Event "Budapest Spring Festival 2019"]
[Site "Budapest"]
[Date "2019.04.13"]
[Round "5.29"]
[White "Ashwath, R.."]
[Black "Pasztor, Balazs"]
[Result "1/2-1/2"]
[ECO "D25"]
[WhiteElo "2388"]
[BlackElo "2139"]
[Annotator "NA"]
[PlyCount "35"]
[EventDate "2019.04.09"]
[EventType "swiss"]
[EventCountry "HUN"]
[SourceTitle "playchess.com"]
[Source "ChessBase"]
[SourceQuality "1"]
[TimeControl "40/5400+30:1800+30"]

1. d4 {[%emt 0:03:24]} d5 {[%emt 0:00:20]} 2. c4 {[%emt 0:00:06]} dxc4 {[%emt 0:00:35]} 3. Nf3 {[%emt 0:00:34]} Nf6 {[%emt 0:01:27]} 4. e3 {[%emt 0:00:12]} a6 {[%emt 0:00:49]} 5. Bxc4 {[%emt 0:01:28]} e6 {[%emt 0:00:38]} 6. a4 {[%emt 0:04:12]} c5 {[%emt 0:00:27]} 7. O-O {[%emt 0:00:33]} Nc6 {[%emt 0:01:25]} 8. Qe2 {[%emt 0:01:52]} Qc7 {[%emt 0:01:13]} 9. Nc3 {[%emt 0:02:39]} Bd6 {[%emt 0:01:27]} 10. Rd1 {[%emt 0:10:19]} O-O {[%emt 0:07:49]} 11. h3 {[%emt 0:02:25]} b6 {[%emt 0:01:18]} 12. Bd2 {[%emt 0:13:53]} Bb7 {[%emt 0:05:58]} 13. Rac1 {[%emt 0:00:30]} Rfd8 {[%emt 0:13:32]} 14. Bd3 {[%emt 0:10:54]} Qe7 {[%emt 0:12:46]} 15. Ne4 {[%emt 0:12:25]} Nxe4 {[%emt 0:14:22]} 16. Bxe4 {[%emt 0:00:12]} Rac8 {[%emt 0:02:35]} 17. Bd3 {[%emt 0:07:04]} a5 {[%emt 0:04:38]} 18. dxc5 {[%emt 0:07:20]} 1/2-1/2